bitfinex/quotes_ETHUSD_20250923
["timestamp","ask_amount","ask_price","bid_price","bid_amount"]
[1758631462590,4.36163149,4206.9,4206.8,16.99550373]
[1758631463712,7.36163149,4206.9,4206.8,16.99550373]
[1758631464312,7.36163149,4206.9,4206.8,17.67450373]
[1758631465913,7.36163149,4206.9,4206.8,17.43000373]
[1758631466092,7.36163149,4206.9,4206.8,17.67450373]
[1758631466419,3.37563149,4206.9,4206.8,17.43000373]
[1758631466616,0.37563149,4206.9,4206.8,17.67450373]
[1758631467119,0.15400353,4206.9,4206.8,17.67450373]
[1758631467816,0.02020001,4206.9,4206.8,17.67450373]
[1758631469101,0.01940001,4206.9,4206.8,17.67450373]
[1758631473055,3.0,4207.6,4207.5,2.37670825]
[1758631473328,3.02,4207.9,4207.8,2.3765388]
[1758631473504,0.60158668,4207.9,4207.8,2.3765388]
[1758631473706,0.60158668,4207.9,4207.8,16.9949388]
[1758631473928,0.60158668,4207.9,4207.8,16.8765388]
[1758631474710,3.60157618,4207.9,4207.8,16.8765388]
[1758631475106,4.03077618,4207.9,4207.8,16.8765388]
[1758631476091,4.84441544,4207.9,4207.8,14.5]
[1758631476398,14.62581547,4207.9,4207.8,16.8765388]
[1758631476619,12.99224179,4207.9,4207.8,16.8765388]
[1758631476924,12.99224179,4207.9,4207.8,14.5]
[1758631477892,12.99224179,4207.9,4206.9,3.985]
[1758631478099,8.14782635,4207.1,4207.0,2.37699072]
[1758631478300,9.15860253,4207.1,4207.0,2.37699072]
[1758631478506,9.15860253,4207.1,4207.0,16.87699072]
[1758631478937,8.50350253,4207.1,4207.0,16.87699072]
[1758631479525,8.72940253,4207.1,4207.0,16.87699072]
[1758631480038,8.7295676,4207.1,4207.0,16.87699072]
[1758631481255,9.1593676,4207.1,4207.0,16.87699072]
[1758631482425,12.15978167,4207.1,4207.0,16.87699072]
[1758631482937,15.48908167,4207.1,4207.0,16.87699072]
[1758631483351,15.72198167,4207.1,4207.0,16.87699072]
[1758631483939,15.72198167,4207.1,4207.0,16.99539072]
[1758631485726,16.15178167,4207.1,4207.0,16.99539072]
[1758631485930,16.15179755,4207.1,4207.0,16.99539072]
[1758631486461,16.1518415,4207.1,4207.0,16.99539072]
[1758631486760,16.01822332,4207.1,4207.0,16.99539072]
[1758631486970,16.15184007,4207.1,4207.0,2.37699072]
[1758631487167,11.50414007,4207.1,4207.0,2.37699072]
[1758631487374,7.34231372,4207.1,4207.0,2.49539072]
[1758631487567,15.49014007,4207.1,4207.0,16.99539072]
[1758631487868,15.72304007,4207.1,4207.0,16.99539072]
[1758631488049,15.49014007,4207.1,4207.0,16.99539072]
[1758631489743,15.72304007,4207.1,4207.0,16.99539072]
[1758631490475,15.49014007,4207.1,4207.0,2.49539072]
[1758631491047,15.49014007,4207.1,4207.0,16.99539072]
[1758631491484,15.72304007,4207.1,4207.0,16.99539072]
[1758631491968,15.72307115,4207.1,4207.0,16.99539072]
[1758631494186,15.72227115,4207.1,4207.0,2.49539072]
[1758631494567,15.72227115,4207.1,4207.0,16.99539072]
[1758631494887,16.15207115,4207.1,4207.0,14.6184]
[1758631495283,16.15207115,4207.1,4207.0,16.99539072]
[1758631497406,16.15210078,4207.1,4207.0,16.99539072]
[1758631498699,16.15210078,4207.1,4207.0,2.49539072]
[1758631498873,16.15214092,4207.1,4207.0,2.49539072]
[1758631499069,16.15214092,4207.1,4207.0,16.99539072]
[1758631499282,16.15214092,4207.1,4207.0,14.5]
[1758631499500,17.76735501,4207.1,4207.0,14.5]
[1758631499991,17.76735744,4207.1,4207.0,14.5]
[1758631500403,16.15214335,4207.1,4207.0,16.87699072]
[1758631500593,15.72234335,4207.1,4207.0,16.87699072]
[1758631501212,15.48844335,4207.1,4207.0,16.87699072]
[1758631501367,3.356617,4207.1,4207.0,17.44519072]
[1758631501700,3.356617,4207.1,4207.0,17.67989072]
[1758631502805,0.357417,4207.1,4207.0,21.66389072]
[1758631503376,0.02,4207.9,4207.4,2.37674914]
[1758631503574,0.02,4207.9,4207.8,2.4949388]
[1758631503824,0.02,4207.9,4207.8,2.51870418]
[1758631504112,0.02,4207.9,4207.8,17.70320418]
[1758631504281,0.02,4207.9,4207.8,17.6794388]
[1758631507090,0.021,4207.9,4207.8,17.6794388]
[1758631512354,0.021,4207.9,4207.8,17.4447388]
[1758631512713,0.021,4207.9,4207.8,16.9949388]
[1758631512912,0.021,4207.9,4207.8,20.9789388]
[1758631513949,0.021,4207.9,4207.8,16.9949388]
[1758631514120,0.021,4207.9,4207.8,20.9779388]
[1758631517190,0.021,4207.9,4207.8,21.4523388]
[1758631517579,0.021,4207.9,4207.8,21.6946388]
[1758631518684,0.021,4207.9,4207.8,22.4866388]
[1758631518990,2.056,4209.1,4207.8,22.4866388]
[1758631518991,3.983,4209.2,4208.0,0.792]
[1758631519191,3.983,4209.2,4208.7,2.3760306]
[1758631519192,0.1332608,4208.8,4208.7,2.3760306]
[1758631519356,3.983,4209.2,4208.8,2.37597414]
[1758631519554,3.983,4209.2,4208.8,2.85037414]
[1758631519789,3.983,4209.2,4208.8,16.87597414]
[1758631520092,8.38642635,4209.3,4208.8,16.87597414]
[1758631520667,8.14782635,4209.0,4208.8,16.87597414]
[1758631521481,0.2386,4209.2,4208.8,16.87597414]
[1758631521789,3.2386,4209.4,4208.8,17.59267414]
[1758631521997,11.38642635,4209.4,4208.8,17.59267414]
[1758631522494,11.38642635,4209.4,4208.8,17.35037414]
[1758631522698,0.2386,4209.2,4208.8,16.87597414]
[1758631522901,8.14782635,4209.1,4208.8,16.87597414]
[1758631523212,3.0,4209.4,4208.8,16.87597414]
[1758631523394,0.13310507,4209.3,4208.8,17.59267414]
[1758631523598,11.14782635,4209.4,4208.8,17.59267414]
[1758631523758,0.13310269,4209.3,4208.8,17.59267414]
[1758631524095,11.14782635,4209.4,4208.8,17.59267414]
[1758631524293,0.13309217,4209.3,4208.8,17.59267414]
[1758631524512,11.14782635,4209.4,4208.8,17.59267414]
[1758631524715,0.13309307,4209.3,4208.8,17.35037414]
[1758631524917,11.38642635,4209.4,4208.8,17.35037414]
[1758631525217,0.13309307,4209.3,4208.8,17.35037414]
[1758631525421,11.38642635,4209.4,4208.8,17.35037414]
[1758631525604,0.13309588,4209.3,4208.8,17.35037414]
[1758631525787,0.2386,4209.2,4208.8,16.87597414]
[1758631526105,0.2386,4209.1,4208.8,16.87597414]
[1758631526619,0.021,4208.9,4208.8,16.87597414]
[1758631528897,0.021,4208.9,4208.8,16.99437414]
[1758631531011,0.021,4208.9,4208.8,17.71107414]
[1758631532943,0.021,4208.9,4208.8,18.50307414]
[1758631533258,3.0,4209.6,4209.5,2.37557904]
[1758631533447,0.37242961,4212.4,4209.7,2.37546618]
[1758631533610,0.2386,4210.1,4209.8,2.37540975]
[1758631533817,0.2586,4209.9,4209.8,2.37540975]
[1758631534114,0.02,4209.9,4209.8,16.87540975]
[1758631534548,0.02,4209.9,4209.8,20.85740975]
[1758631535948,5.17610486,4210.8,4209.8,20.85740975]
[1758631535949,2.37394318,4212.5,4209.9,0.792]
[1758631536254,0.22197907,4211.6,4210.2,0.792]
[1758631536417,0.2586,4211.9,4211.8,2.37428177]
[1758631536615,0.48053526,4211.9,4211.8,16.87428177]
[1758631536813,0.2586,4211.9,4211.8,16.87428177]
[1758631537011,0.02,4211.9,4211.8,16.87428177]
[1758631537960,0.02,4211.9,4211.8,17.59098177]
[1758631538441,0.02,4211.9,4211.8,21.34068177]
[1758631539162,0.02,4211.9,4211.8,22.37498177]
[1758631539326,0.22091742,4212.8,4211.8,19.2077]
[1758631539655,0.22092118,4212.7,4212.6,2.37383088]
[1758631539949,2.05701786,4212.7,4212.6,14.5]
[1758631540155,2.05701786,4212.7,4211.6,0.792]
[1758631540156,2.05701786,4212.7,4210.5,2.37501484]
[1758631540318,9.75634492,4211.9,4211.8,2.37424119]
[1758631540517,9.75634492,4211.9,4210.5,2.37501484]
[1758631540518,2.37433815,4211.7,4210.4,2.37507125]
[1758631540765,12.75634492,4211.1,4211.0,2.37473284]
[1758631540964,1.27563449,4211.1,4211.0,2.37473284]
[1758631541261,2.16303814,4211.1,4211.0,2.37473284]
[1758631541443,0.2385,4211.1,4211.0,2.37473284]
[1758631541943,3.2385,4211.3,4211.2,2.37462006]
[1758631542154,3.4592966,4211.3,4211.2,2.37462006]
[1758631542449,0.4592966,4211.3,4211.2,2.37462006]
[1758631543351,3.0,4211.5,4211.4,2.37450728]
[1758631543525,4.65493747,4211.5,4211.2,0.1184]
[1758631543731,0.64888278,4211.4,4211.3,2.3745207]
[1758631543942,0.64808278,4211.4,4211.3,16.8745207]
[1758631544230,0.88658278,4211.4,4211.3,16.8745207]
[1758631545240,5.72853155,4211.4,4211.3,16.8745207]
[1758631545825,5.06193155,4211.4,4211.3,16.8745207]
[1758631546022,3.0,4211.4,4211.3,16.8745207]
[1758631546518,3.6666,4211.4,4211.3,14.5]
[1758631546845,3.6666,4211.4,4211.3,16.99296367]
[1758631546846,7.007,4211.4,4211.3,16.99296367]
[1758631547023,3.0,4211.4,4211.3,16.99296367]
[1758631548243,3.0,4211.4,4211.3,14.6184]
[1758631548244,3.5386,4211.4,4211.3,14.6184]
[1758631548456,13.85564557,4211.4,4211.3,14.5]
[1758631549352,17.86464557,4211.4,4211.3,14.5]
[1758631550373,3.0,4211.3,4210.7,2.4932982]
[1758631550547,9.75634492,4211.0,4210.7,2.4932982]
[1758631550748,3.0,4210.8,4210.7,0.1184]
[1758631551060,3.15159913,4210.8,4210.5,0.1184]
[1758631551257,12.75634492,4210.6,4210.5,0.1184]
[1758631551433,18.66185718,4210.6,4210.5,2.49341484]
[1758631551770,9.14401226,4210.6,4210.5,16.99341484]
[1758631551970,7.38515785,4210.6,4210.5,16.99341484]
[1758631552974,7.81325785,4210.6,4210.5,14.6184]
[1758631553832,7.38515785,4210.6,4210.5,0.1184]
[1758631554032,7.38515785,4210.6,4209.7,2.37544501]
[1758631554033,10.18825911,4210.6,4209.7,2.37544501]
[1758631554237,9.75634492,4209.8,4209.0,3.226]
[1758631554430,3.0,4209.6,4209.4,0.71428486]
[1758631554630,3.0,4209.6,4209.1,14.5]
[1758631554631,9.88915749,4209.5,4209.1,14.5]
[1758631554858,4.6826,4209.4,4209.2,2.37573585]
[1758631555267,0.6666,4209.3,4209.2,2.37573585]
[1758631555770,0.2385,4209.3,4209.2,2.37573585]
[1758631555967,0.45986934,4209.3,4209.2,2.37573585]
[1758631556175,0.2385,4209.3,4209.2,2.37573585]
[1758631558697,4.016,4209.4,4209.3,2.37569192]
[1758631558991,0.2385,4210.1,4209.5,2.37555197]
[1758631559194,0.2385,4210.1,4209.1,14.5]
[1758631559195,3.0,4209.7,4209.1,18.514]
[1758631559488,3.0,4209.5,4209.4,2.37562009]
[1758631559693,4.02083646,4209.5,4209.3,2.37566882]
[1758631559892,10.64437532,4209.4,4209.1,16.87579093]
[1758631560097,0.2385,4209.3,4209.1,14.5]
[1758631560260,4.015,4209.2,4209.1,14.5]
[1758631560597,4.015,4209.2,4209.1,16.8758048]
[1758631560774,4.015,4209.3,4209.2,2.37574836]
[1758631560971,4.015,4209.5,4209.4,2.37563548]
[1758631561198,4.015,4209.5,4209.1,15.1665]
[1758631561199,5.03599859,4209.5,4209.1,14.5]
[1758631561497,3.0,4209.2,4209.1,14.5]
[1758631561658,8.05593987,4209.2,4207.9,0.004]
[1758631561859,12.75634492,4208.6,4208.5,2.37614351]
[1758631562129,7.23851707,4208.6,4208.5,2.37614351]
[1758631562396,7.017,4208.6,4208.5,16.87614351]
[1758631562560,7.2555,4208.6,4208.5,16.87614351]
[1758631562765,7.017,4208.6,4208.5,16.87614351]
[1758631563160,3.2385,4208.6,4208.5,16.87614351]
[1758631563370,7.2565,4208.6,4208.5,16.87614351]
[1758631563700,7.018,4208.6,4208.5,16.87614351]
[1758631564067,7.018,4208.6,4208.5,16.99454351]
[1758631565921,3.0,4208.6,4208.5,16.99454351]
[1758631566232,0.2385,4209.6,4209.5,2.37557904]
[1758631566510,7.60924459,4209.6,4209.5,2.37557904]
[1758631566710,8.03734459,4209.6,4209.5,2.37557904]
[1758631566912,8.03734459,4209.6,4209.4,14.5]
[1758631567216,1.94582996,4209.5,4209.0,2.37584983]
[1758631567380,3.0,4209.3,4209.1,2.37579377]
[1758631567580,7.70254128,4209.2,4209.1,2.37579377]
[1758631567777,7.6836,4209.2,4209.1,16.87579377]
[1758631567982,3.0,4209.1,4208.8,0.1184]
[1758631568183,3.0,4208.9,4208.5,0.1184]
[1758631568403,3.0,4208.7,4208.5,0.1184]
[1758631568713,7.03594128,4208.6,4208.5,0.1184]
[1758631568894,7.6836,4208.6,4208.5,0.1184]
[1758631569093,7.90487919,4208.6,4208.5,0.1184]
[1758631569512,7.90487919,4208.6,4208.5,2.49454351]
[1758631569700,7.90483276,4208.6,4208.5,2.49454351]
[1758631570216,8.03763276,4208.6,4208.5,2.49454351]
[1758631570415,8.03763276,4208.6,4208.5,0.1184]
[1758631570782,8.03763276,4208.6,4208.5,2.49454351]
[1758631571112,7.47673276,4208.6,4208.5,2.49454351]
[1758631571317,7.2555,4208.6,4208.5,2.49454351]
[1758631572297,7.2555,4208.6,4208.5,16.99454351]
[1758631572810,7.017,4208.6,4208.5,16.99454351]
[1758631573420,3.0,4208.6,4208.5,16.99454351]
[1758631573588,4.014,4208.7,4208.5,15.0678]
[1758631573795,4.014,4208.7,4208.6,3.09024792]
[1758631574118,4.014,4208.7,4208.6,3.20864792]
[1758631574295,7.014,4208.8,4208.7,2.3760306]
[1758631574696,7.014,4208.8,4208.7,2.3997909]
[1758631574942,3.0,4208.8,4208.7,3.0901909]
[1758631575226,0.1184,4209.5,4208.7,3.0901909]
[1758631575227,0.1184,4209.5,4209.4,2.37563548]
[1758631575394,2.7629,4209.7,4209.5,2.37553918]
[1758631575598,4.36721244,4209.6,4209.5,2.37553918]
[1758631575820,7.36721244,4209.6,4209.5,2.37553918]
[1758631575985,7.61451244,4209.6,4209.5,2.37553918]
[1758631576185,4.36721244,4209.6,4209.5,2.37553918]
[1758631576423,0.35421244,4209.6,4209.5,2.37553918]
[1758631576587,4.14582917,4209.6,4209.5,2.37553918]
[1758631576922,0.13282917,4209.6,4209.5,3.18433918]
[1758631577122,4.014,4209.7,4209.6,2.37552261]
[1758631577302,7.14696226,4209.7,4209.6,2.39927783]
[1758631577926,7.14696146,4209.7,4209.6,16.89927783]
[1758631578228,3.35469356,4209.7,4209.6,16.87552261]
[1758631578393,3.35469356,4209.7,4209.6,17.32492261]
[1758631578724,3.35469356,4209.7,4209.6,16.87552261]
[1758631578925,3.13296146,4209.7,4209.6,16.87552261]
[1758631579113,3.35483423,4209.7,4209.6,16.87552261]
[1758631579689,3.13296146,4209.7,4209.6,16.87552261]
[1758631580105,3.35494917,4209.7,4209.6,16.87552261]
[1758631582034,7.36594917,4209.7,4209.6,16.87552261]
[1758631582736,7.61324917,4209.7,4209.6,16.87552261]
[1758631584493,7.61349521,4209.7,4209.6,16.87552261]
[1758631585745,8.07409521,4209.7,4209.6,16.87552261]
[1758631586064,7.94113375,4209.7,4209.6,16.87552261]
[1758631586269,8.07446906,4209.7,4209.6,16.87552261]
[1758631587770,7.61386906,4209.7,4209.6,16.87552261]
[1758631588350,7.36656906,4209.7,4209.6,16.87552261]
[1758631588668,10.27000666,4209.7,4209.6,16.87552261]
[1758631588873,10.51730666,4209.7,4209.6,16.87552261]
[1758631589168,3.0,4209.6,4209.4,2.37561535]
[1758631589363,4.37971034,4209.5,4209.4,2.37561535]
[1758631589671,4.37971034,4209.5,4209.4,16.87561535]
[1758631589872,4.36156906,4209.5,4209.4,16.87561535]
[1758631590053,4.36256906,4209.5,4209.4,16.87561535]
[1758631590763,4.36256906,4209.5,4209.4,17.32501535]
[1758631591053,0.35556906,4209.5,4209.4,17.56601535]
[1758631591274,4.36256906,4209.5,4209.4,17.68441535]
[1758631591437,4.14033531,4209.5,4209.4,17.68441535]
[1758631591632,4.36253478,4209.5,4209.4,17.68441535]
[1758631592062,4.36253478,4209.5,4209.4,17.44341535]
[1758631592236,4.14033531,4209.5,4209.4,17.44341535]
[1758631592442,4.14033531,4209.5,4209.4,2.94341535]
[1758631592965,4.14033531,4209.5,4209.4,17.44341535]
[1758631593932,4.13953531,4209.5,4209.4,17.44341535]
[1758631595265,4.13953531,4209.5,4209.4,16.99401535]
[1758631595569,3.0,4209.9,4209.4,17.68441535]
[1758631595570,4.004,4209.8,4209.4,17.68441535]
[1758631595872,4.004,4209.8,4209.5,0.6904]
[1758631596053,4.004,4209.8,4209.7,2.37546618]
[1758631596257,4.004,4209.8,4209.7,3.18426618]
[1758631596567,7.004,4209.9,4209.8,2.37540975]
[1758631596763,7.22619896,4209.9,4209.8,2.37540975]
[1758631596965,7.004,4209.9,4209.8,2.37540975]
[1758631597165,7.22619964,4209.9,4209.8,2.37540975]
[1758631597572,10.37693724,4209.9,4209.7,0.1184]
[1758631597873,0.24034092,4209.8,4209.5,2.37557904]
[1758631598042,4.68579964,4209.7,4209.5,2.37557904]
[1758631598238,0.94824092,4209.6,4209.5,2.37557904]
[1758631598777,3.94824092,4209.6,4209.4,14.5]
[1758631598940,3.0,4209.4,4208.6,0.004]
[1758631599257,3.0,4209.2,4209.1,2.37575182]
[1758631599434,3.93009964,4209.2,4209.1,16.87575182]
[1758631600187,3.46949964,4209.2,4209.1,16.87575182]
[1758631600562,3.93009964,4209.2,4209.1,16.87575182]
[1758631600783,3.94824092,4209.2,4209.1,14.5]
[1758631601381,3.94824092,4209.2,4209.1,16.8758048]
[1758631601582,3.93009964,4209.2,4209.1,16.8758048]
[1758631601966,3.93009964,4209.2,4209.1,14.5]
[1758631602151,3.94824092,4209.2,4209.1,16.8758048]
[1758631602351,0.94824092,4209.2,4209.1,16.8758048]
[1758631602658,3.0,4209.1,4208.9,2.49430003]
[1758631602985,4.22451397,4209.0,4208.9,2.49431769]
[1758631603591,4.22451397,4209.0,4208.9,16.99431769]
[1758631605900,4.35807824,4209.0,4208.9,16.99431769]
[1758631606092,4.35807824,4209.0,4208.9,17.68301769]
[1758631607402,4.35806686,4209.0,4208.9,17.43921769]
[1758631608097,4.35606686,4209.0,4208.9,17.43921769]
[1758631609277,0.35606686,4209.0,4208.9,17.68301769]
[1758631609477,0.13355289,4209.0,4208.9,21.68101769]
[1758631610283,0.001,4209.5,4208.9,19.3051]
[1758631610480,4.0,4209.5,4209.4,2.37563548]
[1758631610706,4.35609215,4209.5,4209.4,2.49403548]
[1758631611201,4.35609215,4209.5,4209.4,16.99403548]
[1758631611504,4.35609215,4209.5,4209.4,17.43893548]
[1758631611996,12.4971216,4209.5,4209.4,16.99403548]
[1758631612405,12.27456397,4209.5,4209.4,16.99403548]
[1758631612578,12.49713409,4209.5,4209.4,16.99403548]
[1758631613286,12.49613409,4209.5,4209.4,16.99403548]
[1758631614109,12.49614484,4209.5,4209.4,16.99403548]
[1758631614299,12.49614532,4209.5,4209.4,16.99403548]
[1758631614494,4.35511587,4209.5,4209.4,16.99403548]
[1758631614677,4.35511587,4209.5,4209.4,17.43893548]
[1758631615079,4.35510628,4209.5,4209.4,17.43893548]
[1758631615294,4.35510628,4209.5,4209.4,16.99403548]
[1758631617220,4.35509119,4209.5,4209.4,16.99403548]
[1758631617514,14.4795127,4209.5,4209.3,2.37568112]
[1758631617717,1.08393247,4209.4,4209.3,2.37568112]
[1758631618584,1.08393247,4209.4,4209.3,2.37569192]
[1758631618913,4.08313247,4209.4,4209.2,14.5]
[1758631619126,11.86747659,4209.3,4208.7,0.1184]
[1758631619302,8.14102945,4208.9,4208.8,2.37597414]
[1758631619612,12.49412064,4208.9,4208.8,16.87597414]
[1758631620110,12.49413707,4208.9,4208.8,16.87597414]
[1758631620321,4.35310762,4208.9,4208.8,16.87597414]
[1758631621184,0.35610762,4208.9,4208.8,16.87597414]
[1758631621485,4.12953169,4208.9,4208.8,17.68307414]
[1758631621823,0.13353169,4208.9,4208.8,17.68307414]
[1758631622486,0.13353169,4208.9,4208.8,17.56467414]
[1758631622703,3.997,4209.2,4208.8,15.3071]
[1758631622921,0.13352715,4209.1,4209.0,2.37586124]
[1758631623082,0.13352715,4209.1,4209.0,2.82076124]
[1758631623420,0.13352715,4209.1,4209.0,2.49426124]
[1758631623628,0.35608837,4209.1,4209.0,16.99426124]
[1758631623817,0.13352715,4209.1,4209.0,16.99426124]
[1758631624227,0.13352715,4209.1,4209.0,17.68296124]
[1758631624433,0.13352715,4209.1,4209.0,17.43916124]
[1758631624603,3.998,4209.2,4209.1,2.3758048]
[1758631624926,0.001,4209.5,4209.3,2.37569192]
[1758631625234,0.001,4209.5,4209.4,2.39939183]
[1758631625526,0.13451589,4209.5,4209.4,3.20649183]
[1758631625730,0.13451589,4209.5,4209.4,2.93893548]
[1758631625934,0.13451589,4209.5,4209.4,2.49403548]
[1758631626430,8.27554534,4209.5,4209.4,2.49403548]
[1758631626730,8.49806317,4209.5,4209.4,2.49403548]
[1758631626932,8.27554534,4209.5,4209.4,2.49403548]
[1758631627937,12.49707192,4209.5,4209.4,2.49403548]
[1758631628114,13.20677192,4209.5,4209.4,2.49403548]
[1758631628314,13.20677192,4209.5,4209.4,16.99403548]
[1758631630903,5.06577313,4209.5,4209.4,16.99403548]
[1758631631410,4.35407313,4209.5,4209.4,17.44613548]
[1758631631610,4.13151589,4209.5,4209.4,16.99403548]
[1758631631937,5.02587564,4209.5,4209.4,16.87563548]
[1758631634653,6.54806615,4209.5,4209.4,14.5]
[1758631634954,3.0,4209.4,4208.9,0.1184]
[1758631635158,3.0,4209.2,4209.1,2.3758048]
[1758631635354,4.35507564,4209.2,4209.1,16.8758048]
[1758631635549,4.59597564,4209.2,4209.1,16.8758048]
[1758631637857,0.35607564,4209.2,4209.1,16.8758048]
[1758631638158,4.35307564,4209.2,4209.1,17.6896048]
[1758631638353,7.35307564,4209.2,4209.1,17.6896048]
[1758631638558,7.35307564,4209.2,4209.1,3.1896048]
[1758631638860,7.35318176,4209.2,4209.1,2.4942048]
[1758631639023,7.35318176,4209.2,4209.1,17.4463048]
[1758631639375,7.35318176,4209.2,4209.1,17.6896048]
[1758631639717,7.35318176,4209.2,4209.1,17.4463048]
[1758631639942,7.3531975,4209.2,4209.1,16.9942048]
[1758631640354,7.3531975,4209.2,4209.1,17.4463048]
[1758631640561,7.3531975,4209.2,4209.1,17.6896048]
[1758631640562,0.3561975,4209.2,4209.1,17.6896048]
[1758631641263,0.13351589,4209.2,4209.1,21.6856048]
[1758631641467,33.817107,4209.5,4209.3,2.37569192]
[1758631641644,33.817107,4209.5,4209.4,3.09479183]
[1758631641844,33.95069348,4209.5,4209.4,2.49403548]
[1758631642044,34.17334785,4209.5,4209.4,2.49403548]
[1758631642423,34.17334785,4209.5,4209.4,2.51779183]
[1758631642623,33.95069348,4209.5,4209.4,2.94613548]
[1758631643162,34.17334102,4209.5,4209.4,2.49403548]
[1758631643657,34.41344102,4209.5,4209.4,2.49403548]
[1758631643859,34.41344499,4209.5,4209.4,2.49403548]
[1758631644034,45.98537444,4209.5,4209.4,2.49403548]
[1758631644239,45.98537444,4209.5,4209.4,2.37563548]
[1758631644640,37.84434499,4209.5,4209.4,2.37563548]
[1758631645375,37.41344499,4209.5,4209.4,16.87563548]
[1758631648240,37.41344499,4209.5,4209.4,2.37563548]
[1758631648442,37.84434499,4209.5,4209.4,2.37563548]
[1758631648681,37.84439143,4209.5,4209.4,2.37563548]
[1758631649992,48.42825848,4209.5,4209.4,2.37563548]
[1758631650288,45.98542088,4209.5,4209.4,2.37563548]
[1758631651272,33.17659143,4209.5,4209.4,2.37563548]
[1758631651588,37.16959143,4209.5,4209.4,2.37563548]
[1758631652585,37.16959143,4209.5,4209.4,2.82773548]
[1758631652771,37.16959143,4209.5,4209.4,2.49403548]
[1758631655981,37.16971206,4209.5,4209.4,2.49403548]
[1758631656664,33.17671206,4209.5,4209.4,2.49403548]
[1758631656865,37.16771206,4209.5,4209.4,2.94613548]
[1758631657502,36.811307,4209.5,4209.4,3.18943548]
[1758631658056,36.811307,4209.5,4209.4,2.94613548]
[1758631658385,37.16777439,4209.5,4209.4,3.66054281]
[1758631658774,36.811307,4209.5,4209.4,3.66054281]
[1758631659092,29.820307,4209.5,4209.4,3.66054281]
[1758631659283,29.820307,4209.5,4209.4,3.90384281]
[1758631659594,30.04309214,4209.5,4209.4,3.90384281]
[1758631660290,29.820307,4209.5,4209.4,3.90384281]
[1758631660498,29.95397379,4209.5,4209.4,3.90384281]
[1758631661676,29.95397379,4209.5,4209.4,3.66054281]
[1758631661878,29.95397379,4209.5,4209.4,3.89444281]
[1758631662278,29.95397379,4209.5,4209.4,3.66054281]
[1758631662481,29.95397379,4209.5,4209.4,3.20844281]
[1758631663900,29.95397379,4209.5,4209.4,3.90794281]
[1758631664405,29.95397379,4209.5,4209.4,3.67404281]
[1758631664790,29.95397379,4209.5,4209.4,3.20844281]
[1758631665669,26.61166419,4209.4,4209.2,2.37574561]
[1758631665871,0.13366679,4209.3,4209.2,3.55572402]
[1758631666270,0.13366679,4209.3,4209.2,3.67412402]
[1758631666880,0.35926679,4209.3,4209.2,2.49414561]
[1758631667202,0.13366679,4209.3,4209.2,2.49414561]
[1758631668776,0.13286679,4209.3,4209.2,2.49414561]
[1758631668976,0.13286679,4209.3,4209.2,2.95974561]
[1758631669610,0.13286679,4209.3,4209.2,2.49414561]
[1758631669774,0.13286679,4209.3,4209.2,6.94774561]
[1758631669974,0.13286679,4209.3,4209.2,7.18164561]
[1758631670669,26.61166419,4209.4,4209.3,2.37569192]
[1758631670870,26.61166419,4209.4,4209.3,3.09894883]
[1758631672390,0.0002,4209.5,4209.4,2.37563548]
[1758631672618,0.0002,4209.5,4209.4,7.06313548]
[1758631672791,0.0002,4209.5,4209.4,7.85513548]
[1758631675204,0.0002,4209.5,4209.4,2.37563548]
[1758631675399,0.0002,4209.5,4209.4,6.36363548]
[1758631676126,0.0002,4209.5,4209.4,7.06313548]
[1758631676641,0.0002,4209.5,4209.4,6.36363548]
[1758631676922,0.2258,4209.5,4209.4,6.36363548]
[1758631677134,0.0002,4209.5,4209.4,6.36363548]
[1758631677430,0.2258,4209.5,4209.4,6.36363548]
[1758631678522,0.0002,4209.5,4209.4,6.36363548]
[1758631678735,0.0002,4209.5,4209.4,21.56313548]
[1758631678943,0.0002,4209.5,4209.4,21.32923548]
[1758631679142,0.0002,4209.5,4209.4,20.86363548]
[1758631679629,0.0002,4209.5,4209.4,21.57799178]
[1758631680354,0.0002,4209.5,4209.4,22.04359178]
[1758631680550,0.0002,4209.5,4209.4,21.57799178]
[1758631680845,0.13373827,4209.5,4209.4,21.57799178]
[1758631681557,0.13373827,4209.5,4209.4,22.04359178]
[1758631682046,0.13373827,4209.5,4209.4,20.86363548]
[1758631682643,0.0002,4209.5,4209.4,21.56313548]
[1758631682849,0.0002,4209.5,4209.4,21.68153548]
[1758631683148,0.0002,4209.5,4209.4,22.47353548]
[1758631683311,0.0002,4209.5,4209.4,22.69913548]
[1758631683908,1e-08,4210.7,4210.6,0.792]
[1758631684147,0.6781,4211.6,4211.5,2.3744509]
[1758631684307,0.90063084,4211.6,4211.5,2.3744509]
[1758631684505,0.90063084,4211.6,4211.5,2.4928509]
[1758631684704,0.90063084,4211.6,4211.5,16.9928509]
[1758631684952,0.22253084,4211.6,4211.5,16.9928509]
[1758631685311,0.2256,4212.4,4212.3,2.37399995]
[1758631685540,0.44775687,4212.4,4212.3,2.37399995]
[1758631685764,0.44775687,4212.4,4212.3,2.49239995]
[1758631685765,3.44775687,4212.4,4212.3,2.49239995]
[1758631686064,0.90025687,4212.4,4212.3,2.49239995]
[1758631686239,3.91759815,4212.4,4212.3,0.1184]
[1758631686408,4.61202384,4212.4,4212.1,2.37408837]
[1758631686610,3.71176697,4212.4,4212.3,14.5]
[1758631686930,4.9063586,4212.4,4212.3,16.87399995]
[1758631687131,8.58445767,4212.4,4212.3,16.87399995]
[1758631687334,8.36252569,4212.4,4212.3,16.87399995]
[1758631687642,6.99,4212.4,4212.3,16.87399995]
[1758631688546,3.99,4212.4,4212.3,16.87399995]
[1758631688752,0.6781,4212.8,4212.7,2.37377453]
[1758631688946,3.22163539,4212.8,4212.7,2.37377453]
[1758631689126,3.0,4212.8,4212.7,2.49217453]
[1758631690137,0.02,4212.9,4212.8,2.37371819]
[1758631690930,0.2456,4212.9,4212.8,16.87371819]
[1758631691463,0.02,4212.9,4212.8,16.87371819]
[1758631691854,12.78538277,4212.9,4212.8,14.5]
[1758631692065,12.78538277,4212.9,4212.4,0.71382258]
[1758631692066,15.87028748,4212.9,4212.4,0.71382258]
[1758631692240,12.76538277,4212.5,4212.1,0.1184]
[1758631692442,12.76538277,4212.5,4211.7,2.37432097]
[1758631692443,7.01234128,4212.4,4212.2,14.5]
[1758631692751,3.0,4212.2,4211.6,0.1184]
[1758631692936,0.01734128,4212.1,4211.6,0.1184]
[1758631693136,0.7112,4212.0,4211.7,14.5]
[1758631693338,16.77772405,4211.9,4211.7,14.5]
[1758631693538,0.72854128,4211.8,4211.7,14.5]